[Event "*** Titled Tuesday Blitz"]
[Site "Chess.com"]
[Date "2020.11.10"]
[Round "10"]
[White "Kazmin_Dmitrij"]
[Black "parintele_chess"]
[Result "0-1"]
[WhiteElo "2252"]
[BlackElo "2161"]
[TimeControl "180+1"]
[EndTime "12:02:45 PST"]
[Termination "parintele_chess won on time"]

1. e4 {[%clk 0:03:00.9]} 1... c5 {[%clk 0:02:58.8]} 2. Nc3 {[%clk 0:03:00]} 2...
Nc6 {[%clk 0:02:58]} 3. g3 {[%clk 0:03:00.2]} 3... g6 {[%clk 0:02:58]} 4. Bg2
{[%clk 0:03:00.4]} 4... Bg7 {[%clk 0:02:58]} 5. d3 {[%clk 0:03:00.7]} 5... e6
{[%clk 0:02:58.5]} 6. Be3 {[%clk 0:02:59.6]} 6... d6 {[%clk 0:02:57.5]} 7. f4
{[%clk 0:02:57.4]} 7... Nge7 {[%clk 0:02:57.2]} 8. Nf3 {[%clk 0:02:57.3]} 8...
Nd4 {[%clk 0:02:56.5]} 9. O-O {[%clk 0:02:55]} 9... Nec6 {[%clk 0:02:54.6]} 10.
Qd2 {[%clk 0:02:52.4]} 10... O-O {[%clk 0:02:53.8]} 11. Nd1 {[%clk 0:02:52.4]}
11... b5 {[%clk 0:02:52.1]} 12. Ne1 {[%clk 0:02:51.5]} 12... b4 {[%clk
0:02:43.2]} 13. c3 {[%clk 0:02:50.7]} 13... Nb5 {[%clk 0:02:41.9]} 14. e5 {[%clk
0:02:43.1]} 14... Qc7 {[%clk 0:02:33.8]} 15. d4 {[%clk 0:02:31.6]} 15... bxc3
{[%clk 0:02:26.9]} 16. bxc3 {[%clk 0:02:30]} 16... cxd4 {[%clk 0:02:26.4]} 17.
cxd4 {[%clk 0:02:28.4]} 17... dxe5 {[%clk 0:02:24.7]} 18. dxe5 {[%clk
0:02:26.6]} 18... Rd8 {[%clk 0:02:24.3]} 19. Qc2 {[%clk 0:02:18.7]} 19... Bb7
{[%clk 0:02:23.3]} 20. a4 {[%clk 0:02:07.2]} 20... Nbd4 {[%clk 0:02:21.7]} 21.
Qf2 {[%clk 0:02:01.1]} 21... Rac8 {[%clk 0:02:07.7]} 22. Rc1 {[%clk 0:01:42.4]}
22... Qb6 {[%clk 0:02:05.1]} 23. Nc2 {[%clk 0:01:25.8]} 23... Bf8 {[%clk
0:01:34.2]} 24. Nxd4 {[%clk 0:01:07.8]} 24... Nxd4 {[%clk 0:01:34.4]} 25. Rxc8
{[%clk 0:01:01.9]} 25... Bxc8 {[%clk 0:01:31.6]} 26. a5 {[%clk 0:00:49.1]} 26...
Qxa5 {[%clk 0:01:21.3]} 27. Kh1 {[%clk 0:00:39.5]} 27... Bc5 {[%clk 0:01:20.1]}
28. Nb2 {[%clk 0:00:34.6]} 28... Ba6 {[%clk 0:01:02.9]} 29. Rd1 {[%clk
0:00:26.8]} 29... Qc3 {[%clk 0:01:01.5]} 30. Na4 {[%clk 0:00:22.8]} 30... Qb3
{[%clk 0:01:01.3]} 31. Ra1 {[%clk 0:00:11.2]} 31... Bb6 {[%clk 0:00:32.7]} 32.
Nxb6 {[%clk 0:00:11.1]} 32... Qxb6 {[%clk 0:00:33.6]} 33. Bxd4 {[%clk
0:00:08.3]} 33... Rxd4 {[%clk 0:00:31.9]} 34. h4 {[%clk 0:00:05.6]} 34... Bb7
{[%clk 0:00:29.1]} 35. Bxb7 {[%clk 0:00:04.7]} 35... Qxb7+ {[%clk 0:00:28.9]}
36. Kh2 {[%clk 0:00:05]} 36... Qd5 {[%clk 0:00:23.7]} 37. Ra2 {[%clk 0:00:03.7]}
37... Rd1 {[%clk 0:00:23.2]} 38. Qg2 {[%clk 0:00:02.8]} 38... Qd4 {[%clk
0:00:14.5]} 39. Rc2 {[%clk 0:00:01.1]} 39... Rb1 {[%clk 0:00:13.7]} 40. Ra2
{[%clk 0:00:01]} 40... Qc4 {[%clk 0:00:11.9]} 0-1

[Event "*** Titled Tuesday Blitz"]
[Site "Chess.com"]
[Date "2020.11.10"]
[Round "10"]
[White "DishonorOnYourCow"]
[Black "GameOverBro"]
[Result "0-1"]
[WhiteElo "2394"]
[BlackElo "2524"]
[TimeControl "180+1"]
[EndTime "12:02:47 PST"]
[Termination "GameOverBro won on time"]

1. d4 {[%clk 0:03:00.9]} 1... c5 {[%clk 0:02:58.7]} 2. d5 {[%clk 0:03:00.5]}
2... e5 {[%clk 0:02:59]} 3. e4 {[%clk 0:02:59.9]} 3... d6 {[%clk 0:02:59.1]} 4.
Nc3 {[%clk 0:02:56.4]} 4... a6 {[%clk 0:02:58.8]} 5. a4 {[%clk 0:02:56.5]} 5...
Be7 {[%clk 0:02:58.7]} 6. Nf3 {[%clk 0:02:55.1]} 6... Bg4 {[%clk 0:02:58]} 7.
Be2 {[%clk 0:02:45.9]} 7... Bxf3 {[%clk 0:02:53.3]} 8. Bxf3 {[%clk 0:02:46.8]}
8... Bg5 {[%clk 0:02:53.5]} 9. O-O {[%clk 0:02:47.3]} 9... Nd7 {[%clk 0:02:53]}
10. g3 {[%clk 0:02:46.5]} 10... Nh6 {[%clk 0:02:52.3]} 11. Bg2 {[%clk
0:02:46.6]} 11... Bxc1 {[%clk 0:02:51.8]} 12. Qxc1 {[%clk 0:02:47.5]} 12... O-O
{[%clk 0:02:52]} 13. Qe3 {[%clk 0:02:38]} 13... f5 {[%clk 0:02:50.1]} 14. exf5
{[%clk 0:02:32.3]} 14... Nxf5 {[%clk 0:02:49.7]} 15. Qd2 {[%clk 0:02:28.7]}
15... Nd4 {[%clk 0:02:47.5]} 16. Ne4 {[%clk 0:02:08.1]} 16... Qe7 {[%clk
0:02:05.9]} 17. Qd3 {[%clk 0:01:59.2]} 17... b5 {[%clk 0:01:48.3]} 18. axb5
{[%clk 0:01:52.3]} 18... axb5 {[%clk 0:01:49.2]} 19. Rxa8 {[%clk 0:01:52.3]}
19... Rxa8 {[%clk 0:01:49.5]} 20. c3 {[%clk 0:01:52.8]} 20... c4 {[%clk
0:01:49.5]} 21. Qd1 {[%clk 0:01:40.7]} 21... Nb3 {[%clk 0:01:46.3]} 22. Qh5
{[%clk 0:01:04.6]} 22... h6 {[%clk 0:01:33]} 23. Bh3 {[%clk 0:01:02.1]} 23...
Nf6 {[%clk 0:01:23]} 24. Qh4 {[%clk 0:00:52.4]} 24... Ra7 {[%clk 0:01:07.8]} 25.
Be6+ {[%clk 0:00:48.3]} 25... Kf8 {[%clk 0:01:02.4]} 26. Ng5 {[%clk 0:00:30.1]}
26... Ke8 {[%clk 0:01:02.6]} 27. Nf7 {[%clk 0:00:24]} 27... Nc5 {[%clk
0:00:41.7]} 28. Rd1 {[%clk 0:00:15.7]} 28... Nd3 {[%clk 0:00:24.4]} 29. Qh3
{[%clk 0:00:07.3]} 29... Nxb2 {[%clk 0:00:20.6]} 30. Rb1 {[%clk 0:00:06.6]}
30... Ra2 {[%clk 0:00:21]} 31. Qf5 {[%clk 0:00:05.9]} 31... e4 {[%clk
0:00:15.1]} 32. Qg6 {[%clk 0:00:05.9]} 32... Kf8 {[%clk 0:00:14.6]} 33. g4
{[%clk 0:00:04]} 33... b4 {[%clk 0:00:12.1]} 34. g5 {[%clk 0:00:04.4]} 34...
hxg5 {[%clk 0:00:10.5]} 35. Nxg5 {[%clk 0:00:05.3]} 35... bxc3 {[%clk
0:00:09.4]} 36. Nh7+ {[%clk 0:00:02]} 36... Nxh7 {[%clk 0:00:09.1]} 37. Qxh7
{[%clk 0:00:02.9]} 37... Qg5+ {[%clk 0:00:09.5]} 38. Kh1 {[%clk 0:00:03.4]}
38... Nd3 {[%clk 0:00:07.8]} 39. Qh8+ {[%clk 0:00:01.2]} 39... Ke7 {[%clk
0:00:07.6]} 40. Rb7+ {[%clk 0:00:02.1]} 40... Kf6 {[%clk 0:00:07.2]} 41. Qf8+
{[%clk 0:00:02.4]} 41... Ke5 {[%clk 0:00:07.7]} 42. Qxg7+ {[%clk 0:00:01.9]}
42... Qxg7 {[%clk 0:00:07.4]} 43. Rxg7 {[%clk 0:00:02.8]} 43... c2 {[%clk
0:00:04.1]} 44. Rg1 {[%clk 0:00:01.7]} 44... Nxf2+ {[%clk 0:00:03.9]} 45. Kg2
{[%clk 0:00:01.6]} 45... Nd1 {[%clk 0:00:04.8]} 46. h4 {[%clk 0:00:01.5]} 46...
c1=Q+ {[%clk 0:00:05.2]} 0-1

[Event "*** Titled Tuesday Blitz"]
[Site "Chess.com"]
[Date "2020.11.10"]
[Round "10"]
[White "Mikasinski"]
[Black "Grieve72"]
[Result "0-1"]
[WhiteElo "2473"]
[BlackElo "2399"]
[TimeControl "180+1"]
[EndTime "12:02:47 PST"]
[Termination "Grieve72 won on time"]

1. e4 {[%clk 0:03:00.9]} 1... c5 {[%clk 0:02:58.4]} 2. Nf3 {[%clk 0:03:01]} 2...
e6 {[%clk 0:02:58.7]} 3. d4 {[%clk 0:03:01.7]} 3... cxd4 {[%clk 0:02:59.6]} 4.
Nxd4 {[%clk 0:03:02.4]} 4... Nc6 {[%clk 0:02:58.8]} 5. Nc3 {[%clk 0:03:02.8]}
5... Qc7 {[%clk 0:02:59]} 6. Be2 {[%clk 0:03:02.8]} 6... a6 {[%clk 0:02:58.1]}
7. O-O {[%clk 0:03:02.9]} 7... Nf6 {[%clk 0:02:58.3]} 8. Be3 {[%clk 0:03:03.3]}
8... Bb4 {[%clk 0:02:57.9]} 9. Na4 {[%clk 0:03:03.9]} 9... Be7 {[%clk
0:02:57.9]} 10. c4 {[%clk 0:03:02.8]} 10... Nxe4 {[%clk 0:02:56.1]} 11. Bf3
{[%clk 0:02:36.6]} 11... Nf6 {[%clk 0:02:41.3]} 12. Nxc6 {[%clk 0:02:26.8]}
12... bxc6 {[%clk 0:02:39.5]} 13. Nb6 {[%clk 0:02:01.6]} 13... Rb8 {[%clk
0:02:38.4]} 14. c5 {[%clk 0:01:59.5]} 14... Nd5 {[%clk 0:02:26.2]} 15. Bxd5
{[%clk 0:01:58]} 15... cxd5 {[%clk 0:02:26.3]} 16. Bd4 {[%clk 0:01:40.2]} 16...
f6 {[%clk 0:01:48.5]} 17. Rc1 {[%clk 0:01:30.9]} 17... Bb7 {[%clk 0:01:47.8]}
18. b4 {[%clk 0:01:23.7]} 18... e5 {[%clk 0:01:42.7]} 19. Bb2 {[%clk 0:01:20.4]}
19... d4 {[%clk 0:01:41.2]} 20. f4 {[%clk 0:01:13.7]} 20... O-O {[%clk
0:01:35.6]} 21. Qb3+ {[%clk 0:01:10.3]} 21... Kh8 {[%clk 0:01:32.2]} 22. Qg3
{[%clk 0:01:04.3]} 22... d6 {[%clk 0:01:16.2]} 23. fxe5 {[%clk 0:01:00.4]} 23...
fxe5 {[%clk 0:01:09.9]} 24. cxd6 {[%clk 0:00:56.5]} 24... Rxf1+ {[%clk
0:00:52.3]} 25. Kxf1 {[%clk 0:00:55.4]} 25... Qxd6 {[%clk 0:00:42.4]} 26. Nc4
{[%clk 0:00:50.2]} 26... Qf6+ {[%clk 0:00:21.1]} 27. Kg1 {[%clk 0:00:49.3]}
27... Bd6 {[%clk 0:00:20.7]} 28. Bxd4 {[%clk 0:00:26.8]} 28... exd4 {[%clk
0:00:21.6]} 29. Nxd6 {[%clk 0:00:26.8]} 29... Bd5 {[%clk 0:00:11.4]} 30. Nf7+
{[%clk 0:00:24.6]} 30... Bxf7 {[%clk 0:00:10.1]} 31. Qxb8+ {[%clk 0:00:24.7]}
31... Bg8 {[%clk 0:00:10.7]} 32. Rc8 {[%clk 0:00:16]} 32... Qe6 {[%clk
0:00:06.5]} 33. Re8 {[%clk 0:00:14.1]} 33... Qxa2 {[%clk 0:00:04.7]} 34. h3
{[%clk 0:00:08.8]} 34... h6 {[%clk 0:00:04.1]} 35. Qe5 {[%clk 0:00:08]} 35... d3
{[%clk 0:00:03]} 36. Re7 {[%clk 0:00:07]} 36... Bf7 {[%clk 0:00:02.2]} 37. Qd4
{[%clk 0:00:02.5]} 37... d2 {[%clk 0:00:02.4]} 38. Kh2 {[%clk 0:00:02.3]} 38...
Bd5 {[%clk 0:00:01.6]} 39. Re2 {[%clk 0:00:01.1]} 39... Bf7 {[%clk 0:00:01.2]}
0-1

[Event "*** Titled Tuesday Blitz"]
[Site "Chess.com"]
[Date "2020.11.10"]
[Round "10"]
[White "Azoulas1"]
[Black "natelleka"]
[Result "1-0"]
[WhiteElo "2072"]
[BlackElo "2122"]
[TimeControl "180+1"]
[EndTime "12:03:02 PST"]
[Termination "Azoulas1 won on time"]

1. c4 {[%clk 0:03:00.9]} 1... e5 {[%clk 0:02:59.4]} 2. Nc3 {[%clk 0:03:00.2]}
2... Nf6 {[%clk 0:02:59.6]} 3. g3 {[%clk 0:03:00.2]} 3... d5 {[%clk 0:02:59.4]}
4. cxd5 {[%clk 0:02:59.5]} 4... Nxd5 {[%clk 0:02:59.7]} 5. Bg2 {[%clk
0:02:59.3]} 5... Nb6 {[%clk 0:02:59.6]} 6. Nf3 {[%clk 0:02:57.4]} 6... Nc6
{[%clk 0:02:59.7]} 7. d3 {[%clk 0:02:57.3]} 7... Be6 {[%clk 0:02:59.9]} 8. O-O
{[%clk 0:02:56.8]} 8... Be7 {[%clk 0:03:00.1]} 9. Be3 {[%clk 0:02:56.1]} 9...
O-O {[%clk 0:03:00]} 10. a3 {[%clk 0:02:55.9]} 10... f6 {[%clk 0:03:00]} 11. Rc1
{[%clk 0:02:55.5]} 11... Nd5 {[%clk 0:02:59]} 12. Nxd5 {[%clk 0:02:53.2]} 12...
Bxd5 {[%clk 0:02:59.1]} 13. b4 {[%clk 0:02:51.3]} 13... a6 {[%clk 0:02:58.8]}
14. Bc5 {[%clk 0:02:50]} 14... Qd7 {[%clk 0:02:50.4]} 15. Bxe7 {[%clk
0:02:45.6]} 15... Nxe7 {[%clk 0:02:43.6]} 16. Qc2 {[%clk 0:02:43.6]} 16... Nc6
{[%clk 0:02:40.8]} 17. Qc5 {[%clk 0:02:39.7]} 17... Rad8 {[%clk 0:02:39.3]} 18.
Rfd1 {[%clk 0:02:38.1]} 18... b6 {[%clk 0:02:28.7]} 19. Qc2 {[%clk 0:02:34.9]}
19... Kh8 {[%clk 0:02:28.1]} 20. h4 {[%clk 0:02:29.7]} 20... Bxf3 {[%clk
0:02:23.4]} 21. Bxf3 {[%clk 0:02:24.6]} 21... Nd4 {[%clk 0:02:23.2]} 22. Qxc7
{[%clk 0:02:21.6]} 22... Nxf3+ {[%clk 0:02:23.2]} 23. exf3 {[%clk 0:02:10.3]}
23... Qd5 {[%clk 0:02:23.2]} 24. Qc6 {[%clk 0:01:59.4]} 24... Qb3 {[%clk
0:01:42.6]} 25. Qc3 {[%clk 0:01:51.5]} 25... Qd5 {[%clk 0:01:40.8]} 26. Kg2
{[%clk 0:01:42]} 26... h5 {[%clk 0:01:22.2]} 27. Qc4 {[%clk 0:01:39.6]} 27...
Qxc4 {[%clk 0:01:15.2]} 28. dxc4 {[%clk 0:01:36.8]} 28... Rc8 {[%clk 0:01:09]}
29. Rd6 {[%clk 0:01:34.9]} 29... Rb8 {[%clk 0:01:00.4]} 30. a4 {[%clk
0:01:27.3]} 30... Rfc8 {[%clk 0:00:58.4]} 31. Rd5 {[%clk 0:01:15.3]} 31... Rc6
{[%clk 0:00:45.3]} 32. c5 {[%clk 0:01:06.6]} 32... bxc5 {[%clk 0:00:43.8]} 33.
Rdxc5 {[%clk 0:01:05.5]} 33... Rxc5 {[%clk 0:00:39.5]} 34. bxc5 {[%clk
0:01:05.2]} 34... Rc8 {[%clk 0:00:37.3]} 35. c6 {[%clk 0:01:04.7]} 35... Rc7
{[%clk 0:00:34.2]} 36. Rc5 {[%clk 0:01:04.2]} 36... Kg8 {[%clk 0:00:29.5]} 37.
f4 {[%clk 0:00:56.8]} 37... exf4 {[%clk 0:00:27.8]} 38. gxf4 {[%clk 0:00:56.7]}
38... g6 {[%clk 0:00:24.2]} 39. Kf3 {[%clk 0:00:55.6]} 39... Kf7 {[%clk
0:00:24]} 40. Ke4 {[%clk 0:00:54.9]} 40... Ke6 {[%clk 0:00:22.2]} 41. Kd4 {[%clk
0:00:44.6]} 41... Kd6 {[%clk 0:00:16]} 42. f5 {[%clk 0:00:42.7]} 42... g5 {[%clk
0:00:10.1]} 43. hxg5 {[%clk 0:00:39.1]} 43... fxg5 {[%clk 0:00:10.1]} 44. f6
{[%clk 0:00:35.7]} 44... g4 {[%clk 0:00:06.9]} 45. Rxh5 {[%clk 0:00:30.4]} 45...
Rxc6 {[%clk 0:00:05.3]} 46. f7 {[%clk 0:00:22.6]} 46... Ke7 {[%clk 0:00:04.5]}
47. Rf5 {[%clk 0:00:21.7]} 47... Kf8 {[%clk 0:00:02.7]} 48. Kd5 {[%clk
0:00:17.8]} 1-0

[Event "*** Titled Tuesday Blitz"]
[Site "Chess.com"]
[Date "2020.11.10"]
[Round "10"]
[White "Kaslask"]
[Black "dennisodessa"]
[Result "0-1"]
[WhiteElo "2364"]
[BlackElo "2464"]
[TimeControl "180+1"]
[EndTime "12:03:03 PST"]
[Termination "dennisodessa won on time"]

1. d4 {[%clk 0:03:00.9]} 1... Nf6 {[%clk 0:02:57]} 2. c4 {[%clk 0:02:59.7]} 2...
e6 {[%clk 0:02:56.4]} 3. Nc3 {[%clk 0:02:59.5]} 3... Bb4 {[%clk 0:02:56.8]} 4.
e3 {[%clk 0:02:59.5]} 4... b6 {[%clk 0:02:56.5]} 5. Bd3 {[%clk 0:02:59]} 5...
Bb7 {[%clk 0:02:56]} 6. Nf3 {[%clk 0:02:56.1]} 6... O-O {[%clk 0:02:55.2]} 7.
O-O {[%clk 0:02:55.6]} 7... Bxc3 {[%clk 0:02:55.6]} 8. bxc3 {[%clk 0:02:54.6]}
8... Ne4 {[%clk 0:02:56.5]} 9. Nd2 {[%clk 0:02:49.4]} 9... f5 {[%clk 0:02:51.5]}
10. Qc2 {[%clk 0:02:45.4]} 10... Nxd2 {[%clk 0:02:50.1]} 11. Bxd2 {[%clk
0:02:45.3]} 11... Qh4 {[%clk 0:02:51]} 12. f3 {[%clk 0:02:40]} 12... d6 {[%clk
0:02:50.2]} 13. e4 {[%clk 0:02:34.8]} 13... fxe4 {[%clk 0:02:49.8]} 14. Bxe4
{[%clk 0:02:25.4]} 14... Bxe4 {[%clk 0:02:48.9]} 15. Qxe4 {[%clk 0:02:19.3]}
15... Qxe4 {[%clk 0:02:49.2]} 16. fxe4 {[%clk 0:02:19.1]} 16... Nd7 {[%clk
0:02:50.1]} 17. a4 {[%clk 0:02:13.1]} 17... a5 {[%clk 0:02:45]} 18. Be3 {[%clk
0:02:10.4]} 18... e5 {[%clk 0:02:44.4]} 19. c5 {[%clk 0:02:08.2]} 19... exd4
{[%clk 0:02:19.8]} 20. cxd4 {[%clk 0:02:06.2]} 20... Rfe8 {[%clk 0:02:20.1]} 21.
cxb6 {[%clk 0:01:46.5]} 21... Rxe4 {[%clk 0:02:18.9]} 22. Bf2 {[%clk 0:01:18.9]}
22... Nxb6 {[%clk 0:02:12.4]} 23. Rfc1 {[%clk 0:01:17.2]} 23... Ra7 {[%clk
0:01:59.2]} 24. Rc6 {[%clk 0:01:15]} 24... h6 {[%clk 0:01:44.1]} 25. Rac1 {[%clk
0:01:13.6]} 25... Nxa4 {[%clk 0:01:42.7]} 26. Rxc7 {[%clk 0:01:11.8]} 26... Rxc7
{[%clk 0:01:41.1]} 27. Rxc7 {[%clk 0:01:11.3]} 27... Nb2 {[%clk 0:01:38.2]} 28.
Rd7 {[%clk 0:01:08.7]} 28... Nc4 {[%clk 0:01:33.6]} 29. Rc7 {[%clk 0:01:03.9]}
29... d5 {[%clk 0:01:25.7]} 30. Rc5 {[%clk 0:01:03.6]} 30... a4 {[%clk
0:01:21.4]} 31. Rxd5 {[%clk 0:01:02.2]} 31... a3 {[%clk 0:01:21.3]} 32. Rd8+
{[%clk 0:01:01.7]} 32... Kh7 {[%clk 0:01:19.7]} 33. Ra8 {[%clk 0:01:02.1]} 33...
Re2 {[%clk 0:01:18.8]} 34. d5 {[%clk 0:00:59]} 34... a2 {[%clk 0:01:14.6]} 35.
g3 {[%clk 0:00:57.7]} 35... Rb2 {[%clk 0:01:09.1]} 36. Kg2 {[%clk 0:00:57.1]}
36... Ne3+ {[%clk 0:01:09]} 37. Kf3 {[%clk 0:00:56.7]} 37... Nc2 {[%clk
0:01:09.6]} 38. d6 {[%clk 0:00:43.2]} 38... a1=Q {[%clk 0:01:08.2]} 39. Rxa1
{[%clk 0:00:40.5]} 39... Nxa1 {[%clk 0:01:09.1]} 40. Be3 {[%clk 0:00:33.7]}
40... Rb7 {[%clk 0:01:04]} 41. Ke4 {[%clk 0:00:32]} 41... Nc2 {[%clk 0:01:03]}
42. Bc5 {[%clk 0:00:31.7]} 42... Kg6 {[%clk 0:00:38.2]} 43. Kd5 {[%clk 0:00:31]}
43... Nb4+ {[%clk 0:00:38.7]} 44. Ke6 {[%clk 0:00:14.7]} 44... Na6 {[%clk
0:00:37.7]} 45. d7 {[%clk 0:00:14.1]} 45... Rxd7 {[%clk 0:00:37.6]} 46. Kxd7
{[%clk 0:00:12.9]} 46... Nxc5+ {[%clk 0:00:37.8]} 47. Kd6 {[%clk 0:00:13.5]}
47... Nb3 {[%clk 0:00:32.7]} 48. Ke5 {[%clk 0:00:13.7]} 48... Kg5 {[%clk
0:00:33]} 49. Ke6 {[%clk 0:00:08.5]} 49... Kg4 {[%clk 0:00:28.1]} 50. Kf7 {[%clk
0:00:08]} 50... g5 {[%clk 0:00:28.3]} 51. Kg6 {[%clk 0:00:07.7]} 51... h5 {[%clk
0:00:27.9]} 52. h3+ {[%clk 0:00:05]} 52... Kxg3 {[%clk 0:00:24.4]} 53. Kxh5
{[%clk 0:00:02.4]} 53... Kf4 {[%clk 0:00:24.4]} 0-1

[Event "*** Titled Tuesday Blitz"]
[Site "Chess.com"]
[Date "2020.11.10"]
[Round "10"]
[White "yobdc"]
[Black "Mikhail_Golubev"]
[Result "1-0"]
[WhiteElo "2466"]
[BlackElo "2577"]
[TimeControl "180+1"]
[EndTime "12:03:04 PST"]
[Termination "yobdc won on time"]

1. d4 {[%clk 0:03:00.9]} 1... Nf6 {[%clk 0:02:59.4]} 2. Nf3 {[%clk 0:03:01.1]}
2... d6 {[%clk 0:02:58.9]} 3. Nbd2 {[%clk 0:02:59.4]} 3... g6 {[%clk 0:02:56.4]}
4. e4 {[%clk 0:02:59.6]} 4... Bg7 {[%clk 0:02:57.1]} 5. Bb5+ {[%clk 0:02:59.9]}
5... c6 {[%clk 0:02:56]} 6. Bd3 {[%clk 0:03:00.1]} 6... O-O {[%clk 0:02:55.9]}
7. O-O {[%clk 0:03:00.4]} 7... Qc7 {[%clk 0:02:52.6]} 8. c3 {[%clk 0:03:00.1]}
8... Nbd7 {[%clk 0:02:48.1]} 9. Qe2 {[%clk 0:02:59.8]} 9... e5 {[%clk 0:02:47]}
10. Rd1 {[%clk 0:02:50.4]} 10... Re8 {[%clk 0:02:46.3]} 11. dxe5 {[%clk
0:02:50.6]} 11... dxe5 {[%clk 0:02:44.8]} 12. a4 {[%clk 0:02:49.9]} 12... Nc5
{[%clk 0:02:40.4]} 13. Bc2 {[%clk 0:02:50.1]} 13... a5 {[%clk 0:02:40]} 14. Nc4
{[%clk 0:02:48]} 14... Be6 {[%clk 0:01:58.2]} 15. Bg5 {[%clk 0:02:32.5]} 15...
Nh5 {[%clk 0:01:52.9]} 16. Be3 {[%clk 0:02:20.6]} 16... Nf4 {[%clk 0:01:48.6]}
17. Qf1 {[%clk 0:02:17.8]} 17... Nd7 {[%clk 0:01:38.8]} 18. Ng5 {[%clk
0:02:09.3]} 18... Bxc4 {[%clk 0:00:57.8]} 19. Qxc4 {[%clk 0:02:09]} 19... Nf6
{[%clk 0:00:57.8]} 20. Bb3 {[%clk 0:02:03.3]} 20... Ne6 {[%clk 0:00:51.3]} 21.
Nxe6 {[%clk 0:01:51.6]} 21... Rxe6 {[%clk 0:00:51]} 22. f3 {[%clk 0:01:47.5]}
22... Ree8 {[%clk 0:00:47.5]} 23. Rd2 {[%clk 0:01:42.6]} 23... Nh5 {[%clk
0:00:45.6]} 24. Rad1 {[%clk 0:01:41]} 24... Nf6 {[%clk 0:00:40.7]} 25. Rd6
{[%clk 0:01:30.1]} 25... Re7 {[%clk 0:00:36.8]} 26. Bg5 {[%clk 0:01:21]} 26...
Nd5 {[%clk 0:00:20.2]} 27. Bxe7 {[%clk 0:00:59.3]} 27... Qxe7 {[%clk 0:00:21.1]}
28. exd5 {[%clk 0:00:58.9]} 28... Qxd6 {[%clk 0:00:18.4]} 29. dxc6 {[%clk
0:00:59.2]} 29... Qxc6 {[%clk 0:00:18.2]} 30. Qxf7+ {[%clk 0:00:59.1]} 30... Kh8
{[%clk 0:00:17.5]} 31. Rd7 {[%clk 0:00:56.2]} 31... Qf6 {[%clk 0:00:16.4]} 32.
Qxf6 {[%clk 0:00:48.8]} 32... Bxf6 {[%clk 0:00:16.1]} 33. Rxb7 {[%clk
0:00:49.5]} 33... Bg5 {[%clk 0:00:15.4]} 34. Bd5 {[%clk 0:00:46.3]} 34... Rd8
{[%clk 0:00:14.9]} 35. c4 {[%clk 0:00:46.1]} 35... Be3+ {[%clk 0:00:14]} 36. Kf1
{[%clk 0:00:46.4]} 36... Bd4 {[%clk 0:00:14.1]} 37. Ke2 {[%clk 0:00:46.8]} 37...
h5 {[%clk 0:00:13]} 38. Kd3 {[%clk 0:00:46.5]} 38... h4 {[%clk 0:00:12.4]} 39.
h3 {[%clk 0:00:46.5]} 39... g5 {[%clk 0:00:12.5]} 40. Ke4 {[%clk 0:00:46.8]}
40... Rf8 {[%clk 0:00:12]} 41. b4 {[%clk 0:00:31]} 41... axb4 {[%clk 0:00:11.1]}
42. Rxb4 {[%clk 0:00:30.8]} 42... Rf4+ {[%clk 0:00:11.6]} 43. Kd3 {[%clk
0:00:31]} 43... Bg1 {[%clk 0:00:11.8]} 44. Rb7 {[%clk 0:00:30.1]} 44... Rd4+
{[%clk 0:00:10.5]} 45. Kc3 {[%clk 0:00:30.2]} 45... Rd1 {[%clk 0:00:09.4]} 46.
a5 {[%clk 0:00:25.5]} 46... Ra1 {[%clk 0:00:08.8]} 47. Kb4 {[%clk 0:00:25]}
47... Bf2 {[%clk 0:00:07.8]} 48. Kb5 {[%clk 0:00:24.2]} 48... Rb1+ {[%clk
0:00:04.7]} 49. Kc6 {[%clk 0:00:23.7]} 49... Ra1 {[%clk 0:00:04]} 50. Rb5 {[%clk
0:00:23.2]} 50... Rg1 {[%clk 0:00:03.2]} 51. f4 {[%clk 0:00:22]} 51... gxf4
{[%clk 0:00:02.3]} 52. a6 {[%clk 0:00:21.8]} 52... Re1 {[%clk 0:00:01.8]} 53. c5
{[%clk 0:00:19.6]} 53... Ra1 {[%clk 0:00:01.7]} 54. Kb7 {[%clk 0:00:19.6]} 1-0